fUSD/lending_fUSD_20240216
["ID","MTS","AMOUNT","RATE_DAILY","PERIOD"]
[314190175,1708055444717,-382.88440983,0.00039468,2]
[314190176,1708055444727,-151.021624,0.00039476,26]
[314190177,1708055444738,-151.021624,0.00039476,26]
[314190178,1708055444748,-151.021624,0.00039476,26]
[314190179,1708055444759,-151.021624,0.00039476,26]
[314190180,1708055444768,-171.021624,0.00039476,26]
[314190181,1708055444778,-5000.0,0.0003948,7]
[314190182,1708055444787,-1004.7703,0.00039484,2]
[314190183,1708055444797,-500.0,0.00039485,31]
[314190184,1708055444807,-359.36355773,0.00039485,31]
[314190185,1708055444817,-314.35959797,0.00039485,31]
[314190186,1708055444828,-500.0,0.00039485,31]
[314190187,1708055444838,-500.0,0.00039485,31]
[314190188,1708055444850,-500.0,0.00039485,31]
[314190189,1708055444860,-500.0,0.00039485,31]
[314190190,1708055444870,-500.0,0.00039485,31]
[314190191,1708055444879,-270.13752058,0.00039485,31]
[314190192,1708055444890,-500.0,0.00039485,31]
[314190193,1708055444900,-500.0,0.00039485,31]
[314190194,1708055444911,-500.0,0.00039485,31]
[314190195,1708055444921,-500.0,0.00039485,31]
[314190196,1708055444931,-500.0,0.00039485,31]
[314190197,1708055444941,-500.0,0.00039485,31]
[314190198,1708055444950,-500.0,0.00039485,31]
[314190199,1708055444960,-500.0,0.00039485,31]
[314190200,1708055444969,-500.0,0.00039485,31]
[314190201,1708055444980,-500.0,0.00039485,31]
[314190202,1708055444990,-500.0,0.00039485,31]
[314190203,1708055445002,-500.0,0.00039485,31]
[314190204,1708055445011,-500.0,0.00039485,31]
[314190205,1708055445021,-500.0,0.00039485,31]
[314190206,1708055445030,-500.0,0.00039485,31]
[314190207,1708055445039,-205.95669795,0.00039485,31]
[314190208,1708055445049,-500.0,0.00039485,31]
[314190209,1708055445059,-500.0,0.00039485,31]
[314190210,1708055445069,-500.0,0.00039485,31]
[314190211,1708055445079,-500.0,0.00039485,31]
[314190212,1708055445090,-500.0,0.00039485,31]
[314190213,1708055445100,-500.0,0.00039485,31]
[314190214,1708055445110,-500.0,0.00039485,31]
[314190215,1708055445121,-500.0,0.00039485,31]
[314190216,1708055445132,-500.0,0.00039485,31]
[314190217,1708055445143,-500.0,0.00039485,31]
[314190218,1708055445154,-500.0,0.00039485,31]
[314190219,1708055445164,-500.0,0.00039485,31]
[314190220,1708055445174,-500.0,0.00039485,31]
[314190221,1708055445183,-500.0,0.00039485,31]
[314190222,1708055445192,-530.28566864,0.00039485,31]
[314190223,1708055445202,-500.0,0.00039485,31]
[314190224,1708055445213,-500.0,0.00039485,31]
[314190225,1708055445223,-500.0,0.00039485,31]
[314190226,1708055445233,-500.0,0.00039485,31]
[314190227,1708055445243,-52562.9145051,0.00039488,10]
[314190228,1708055445254,-76177.7913506,0.00039488,4]
[314190229,1708055445263,-151.021624,0.00039498,26]
[314190230,1708055445273,-231.1754606,0.00039499,2]
[314190231,1708055445282,-151.0,0.00039499,30]
[314190232,1708055445291,-150.0,0.00039499,30]
[314190233,1708055445300,-200.0,0.00039561,15]
[314190234,1708055445309,-200.0,0.00039561,10]
[314190235,1708055445319,-151.021624,0.00039576,25]
[314190236,1708055445328,-151.021624,0.00039576,25]
[314190237,1708055445338,-151.021624,0.00039576,25]
[314190238,1708055445348,-151.021624,0.00039576,25]
[314190239,1708055445357,-169.021624,0.00039576,25]
[314190240,1708055445367,-3365.09819918,0.00039596,2]
[314190241,1708055445377,-151.021624,0.00039598,26]
[314190242,1708055445386,-2835.0,0.00039641,2]
[314190243,1708055445396,-842.0,0.00039641,2]
[314190244,1708055445405,-953.0,0.00039641,2]
[314190245,1708055445414,-217.4,0.00039641,2]
[314190246,1708055445423,-1254.0,0.00039641,2]
[314190247,1708055445432,-1231.0,0.00039641,2]
[314190248,1708055445442,-238.579,0.00039641,2]
[314190249,1708055445451,-1009.876,0.00039641,2]
[314190250,1708055445460,-431.769,0.00039641,2]
[314190251,1708055445470,-858.0,0.00039641,2]
[314190252,1708055445479,-323.06,0.00039641,2]
[314190253,1708055445488,-150.843,0.00039641,2]
[314190254,1708055445497,-454.105,0.00039641,2]
[314190255,1708055445506,-1138.0,0.00039641,2]
[314190256,1708055445516,-454.0,0.00039641,2]
[314190257,1708055445525,-150.0,0.00039641,2]
[314190258,1708055445535,-2289.0,0.00039641,2]
[314190259,1708055445544,-19846.0,0.00039641,2]
[314190260,1708055445553,-4060.0,0.00039641,2]
[314190261,1708055445562,-507.851,0.00039641,2]
[314190262,1708055445572,-8164.0,0.00039641,2]
[314190263,1708055445581,-2927.0,0.00039641,2]
[314190264,1708055445590,-150.0,0.00039641,2]
[314190265,1708055445599,-1037.0,0.00039641,2]
[314190266,1708055445609,-151.021624,0.00039676,24]
[314190267,1708055445618,-151.021624,0.00039676,24]
[314190268,1708055445628,-151.021624,0.00039676,24]
[314190269,1708055445637,-151.021624,0.00039676,24]
[314190270,1708055445647,-151.021624,0.00039676,24]
[314190271,1708055445656,-800.0,0.00039679,15]
[314190272,1708055445665,-200.0,0.00039679,20]
[314190273,1708055445675,-76177.7913506,0.0003969,4]
[314190274,1708055445685,-151.021624,0.00039698,26]
[314190275,1708055445695,-155.01,0.000397,3]
[314190276,1708055445704,-569.45,0.000397,3]
[314190277,1708055445714,-569.45,0.000397,3]
[314190278,1708055445724,-569.45,0.000397,3]
[314190279,1708055445733,-569.45,0.000397,3]
[314190280,1708055445742,-569.45,0.000397,3]
[314190281,1708055445754,-569.45,0.000397,3]
[314190282,1708055445763,-569.45,0.000397,3]
[314190283,1708055445772,-569.45,0.000397,3]
[314190284,1708055445782,-569.45,0.000397,3]
[314190285,1708055445791,-569.45,0.000397,3]
[314190286,1708055445801,-569.45,0.000397,3]
[314190287,1708055445810,-569.45,0.000397,3]
[314190288,1708055445819,-569.45,0.000397,3]
[314190289,1708055445830,-569.45,0.000397,3]
[314190290,1708055445839,-569.45,0.000397,3]
[314190291,1708055445849,-569.45,0.000397,3]
[314190292,1708055445858,-569.45,0.000397,3]
[314190293,1708055445867,-569.45,0.000397,3]
[314190294,1708055445877,-569.45,0.000397,3]
[314190295,1708055445886,-569.45,0.000397,3]
[314190296,1708055445896,-1849.31,0.00039726,7]
[314190297,1708055445905,-391.2440641,0.00039726,7]
[314190298,1708055445915,-416.53471171,0.00039726,7]
[314190299,1708055445924,-500.0,0.00039726,7]
[314190300,1708055445934,-500.0,0.00039726,7]
[314190301,1708055445943,-6413.5,0.00039726,7]
[314190302,1708055445952,-500.0,0.00039726,7]
[314190303,1708055445962,-500.0,0.00039726,7]
[314190304,1708055445972,-603.91,0.00039726,7]
[314190305,1708055445982,-980.23,0.00039726,7]
[314190306,1708055445991,-500.0,0.00039726,7]
[314190307,1708055446001,-500.0,0.00039726,7]
[314190308,1708055446011,-500.0,0.00039726,7]
[314190309,1708055446020,-500.0,0.00039726,7]
[314190310,1708055446030,-591.83,0.00039726,7]
[314190311,1708055446039,-332.83541616,0.00039726,7]
[314190312,1708055446048,-500.0,0.00039726,7]
[314190313,1708055446057,-500.0,0.00039726,7]
[314190314,1708055446066,-523.26,0.00039726,7]
[314190316,1708055446075,-502.8,0.00039726,7]
[314190317,1708055446084,-500.0,0.00039726,7]
[314190318,1708055446094,-539.09,0.00039726,7]
[314190319,1708055446103,-732.29,0.00039726,7]
[314190320,1708055446112,-500.0,0.00039726,7]
[314190321,1708055446121,-1505.67,0.00039726,7]
[314190322,1708055446130,-500.0,0.00039726,7]
[314190323,1708055446139,-667.52,0.00039726,7]
[314190324,1708055446148,-500.0,0.00039726,7]
[314190326,1708055446257,-500.0,0.00039726,7]
[314190327,1708055446278,-500.0,0.00039726,7]
[314190328,1708055446287,-500.0,0.00039726,7]
[314190329,1708055446297,-227.48037839,0.00039726,7]
[314190330,1708055446306,-503.46,0.00039726,7]
[314190331,1708055446315,-500.0,0.00039726,7]
[314190332,1708055446325,-1147.58,0.00039726,7]
[314190333,1708055446334,-500.0,0.00039726,7]
[314190334,1708055446343,-500.0,0.00039726,7]
[314190335,1708055446352,-500.0,0.00039726,7]
[314190336,1708055446361,-1277.64,0.00039726,7]
[314190337,1708055446370,-500.0,0.00039726,7]
[314190338,1708055446379,-500.0,0.00039726,7]
[314190339,1708055446389,-5457.67,0.00039726,7]
[314190340,1708055446398,-500.0,0.00039726,7]
[314190341,1708055446408,-500.0,0.00039726,7]
[314190342,1708055446417,-153.32,0.00039726,7]
[314190343,1708055446426,-537.13,0.00039726,7]
[314190344,1708055446435,-500.0,0.00039726,7]
[314190345,1708055446445,-500.0,0.00039726,7]
[314190346,1708055446454,-500.0,0.00039726,7]
[314190347,1708055446463,-500.0,0.00039726,7]
[314190348,1708055446472,-572.0,0.00039737,7]
[314190349,1708055446482,-342.0,0.00039737,7]
[314190350,1708055446491,-400.0,0.00039737,7]
[314190351,1708055446500,-150.0,0.00039737,7]
[314190352,1708055446510,-300.0,0.00039759,2]
[314190353,1708055446519,-300.0,0.00039759,2]
[314190354,1708055446530,-300.0,0.00039759,2]
[314190355,1708055446539,-231.59285315,0.00039759,2]
[314190356,1708055446548,-10379.7365734,0.0003977,13]
[314190357,1708055446557,-1729.15019376,0.0003977,2]
[314190358,1708055446567,-1017.07982751,0.0003977,2]
[314190359,1708055446576,-3030.93058605,0.0003977,2]
[314190360,1708055446586,-250.20348864,0.0003977,2]
[314190361,1708055446595,-923.04206056,0.0003977,2]
[314190362,1708055446605,-290.32468738,0.0003977,2]
[314190363,1708055446614,-5801.38654816,0.0003977,2]
[314190364,1708055446623,-2635.21525674,0.0003977,2]
[314190365,1708055446632,-151.021624,0.00039776,26]
[314190366,1708055446641,-151.021624,0.00039776,26]
[314190367,1708055446650,-151.021624,0.00039776,26]
[314190368,1708055446659,-171.021624,0.00039776,26]
[314190369,1708055446668,-171.021624,0.00039776,26]
[314190370,1708055446677,-263.96651938,0.00039776,2]
[314190371,1708055446687,-3933.0897,0.0003978,7]
[314190372,1708055446696,-382.88440983,0.0003978,2]
[314190373,1708055446705,-3365.09819918,0.0003978,2]
[314190374,1708055446714,-522.20524102,0.0003978,2]
[314190375,1708055446724,-500.0,0.00039783,2]
[314190376,1708055446733,-76177.7913506,0.0003979,5]
[314190377,1708055446742,-1892.0,0.0003979,2]
[314190378,1708055446753,-1500.0,0.00039791,2]
[314190379,1708055446763,-305.7390392,0.00039797,2]
[314190380,1708055446772,-151.021624,0.00039798,26]
[314190381,1708055446781,-226.93323645,0.00039798,10]
[314190382,1708055446791,-441.1186746,0.00039799,30]
[314190383,1708055446801,-220.86804314,0.00039799,7]
[314190384,1708055446810,-2020.0,0.000398,7]
[314190385,1708055446819,-105724.5747716,0.000398,3]
[314190386,1708055446830,-672.69,0.000398,30]
[314190387,1708055446839,-672.69,0.000398,2]
[314190388,1708055446848,-88678.36198565,0.0003986,5]
[314190389,1708055447432,-500.0,0.00038356,7]
[314190390,1708055447442,-500.0,0.0003863,7]
[314190391,1708055447451,-188.14385199,0.00038904,7]
[314190392,1708055447460,-543.39,0.00039726,7]
[314190393,1708055447470,-216032.80341635,0.0003986,5]
[314190394,1708055447479,-160121.51251901,0.0003987,2]
[314190395,1708055447488,-76177.7913506,0.0003987,5]
[314190396,1708055447499,-200.0,0.0003987,7]
[314190397,1708055447508,-151.021624,0.00039876,25]
[314190398,1708055447517,-151.021624,0.00039876,25]
[314190399,1708055447527,-151.021624,0.00039876,25]
[314190400,1708055447537,-151.021624,0.00039876,25]
[314190401,1708055447546,-151.021624,0.00039876,25]
[314190402,1708055447555,-2140.1732744,0.00039877,2]
[314190403,1708055447565,-5000.0,0.00039879,14]
[314190404,1708055447574,-1000.0,0.00039879,14]
[314190405,1708055447582,-150.0,0.00039879,2]
[314190406,1708055447593,-150.0,0.00039879,2]
[314190407,1708055447602,-1889693.81112888,0.0003988,2]
[314190408,1708055447611,-151.0,0.0003988,7]
[314190409,1708055447621,-151.0,0.0003988,7]
[314190410,1708055447630,-151.0,0.0003988,7]
[314190411,1708055447639,-151.0,0.0003988,7]
[314190412,1708055447648,-151.0,0.0003988,7]
[314190413,1708055447657,-155.643189,0.0003988,7]
[314190414,1708055447666,-171.145406,0.0003988,7]
[314190415,1708055447675,-151.0,0.0003988,7]
[314190416,1708055447683,-165.529889,0.0003988,7]
[314190417,1708055447694,-151.218375,0.0003988,7]
[314190418,1708055447703,-151.0,0.0003988,7]
[314190419,1708055447712,-224.131239,0.0003988,7]
[314190420,1708055447721,-204.395707,0.0003988,7]
[314190421,1708055447731,-318.030478,0.0003988,7]
[314190422,1708055447740,-318.030478,0.0003988,7]
[314190423,1708055447751,-151.0,0.0003988,7]
[314190424,1708055447762,-151.0,0.0003988,7]
[314190425,1708055447771,-190.441522,0.0003988,7]
[314190426,1708055447781,-151.0,0.0003988,7]
[314190427,1708055447791,-151.0,0.0003988,7]
[314190428,1708055447802,-151.0,0.0003988,7]
[314190429,1708055447811,-151.0,0.0003988,7]
[314190430,1708055447821,-151.0,0.0003988,7]
[314190431,1708055447831,-224.420115,0.0003988,7]
[314190432,1708055447841,-151.0,0.0003988,7]
[314190433,1708055447850,-151.0,0.0003988,7]
[314190434,1708055447859,-151.0,0.0003988,7]
[314190435,1708055447869,-151.0,0.0003988,7]
[314190436,1708055447879,-151.0,0.0003988,7]
[314190437,1708055447889,-177.610138,0.0003988,7]
[314190438,1708055447899,-200.0,0.0003989,20]
[314190439,1708055447907,-1000.0,0.00039899,2]
[314190440,1708055447918,-2000.0,0.000399,7]
[314190441,1708055447929,-800.0,0.0003996,15]
[314190442,1708055447940,-177.38,0.00039996,2]
[314190443,1708055447949,-2000.0,0.0004,30]
[314190444,1708055447958,-19034.70097032,0.0004,8]
[314190445,1708055447967,-447.41497558,0.0004,4]
[314190446,1708055447976,-300.0,0.0004,41]
[314190447,1708055447985,-255.0,0.0004,12]
[314190448,1708055447994,-249.6275,0.0004,2]
[314190449,1708055448003,-255.0,0.0004,12]
[314190450,1708055448012,-1849.31,0.0004,7]
[314190451,1708055448021,-255.0,0.0004,12]
[314190452,1708055448030,-500.0,0.0004,7]
[314190453,1708055448038,-8009.0,0.0004,3]
[314190454,1708055448048,-255.0,0.0004,12]
[314190455,1708055448057,-500.0,0.0004,7]
[314190456,1708055448067,-301.15506653,0.0004,7]
[314190457,1708055448077,-603.91,0.0004,7]
[314190458,1708055448088,-500.0,0.0004,7]
[314190459,1708055448097,-500.0,0.0004,7]
[314190460,1708055448107,-500.0,0.0004,7]
[314190461,1708055448117,-591.83,0.0004,7]
[314190462,1708055448125,-500.0,0.0004,7]
[314190463,1708055448136,-500.0,0.0004,7]
[314190464,1708055448146,-523.26,0.0004,7]
[314190465,1708055448155,-502.8,0.0004,7]
[314190466,1708055448166,-539.09,0.0004,7]
[314190467,1708055448176,-732.29,0.0004,7]
[314190468,1708055448185,-500.0,0.0004,7]
[314190469,1708055448194,-1505.67,0.0004,7]
[314190470,1708055448203,-500.0,0.0004,7]
[314190471,1708055448212,-667.52,0.0004,7]
[314190472,1708055448221,-500.0,0.0004,7]
[314190473,1708055448230,-5000.0,0.0004,10]
[314190474,1708055448240,-336.38,0.0004,7]
[314190475,1708055448249,-500.0,0.0004,7]
[314190476,1708055448258,-503.46,0.0004,7]
[314190477,1708055448268,-500.0,0.0004,7]
[314190478,1708055448278,-1147.58,0.0004,7]
[314190479,1708055448287,-255.0,0.0004,12]
[314190480,1708055448297,-500.0,0.0004,7]
[314190481,1708055448308,-500.0,0.0004,7]
[314190482,1708055448318,-500.0,0.0004,7]
[314190483,1708055448329,-1277.64,0.0004,7]
[314190484,1708055448339,-23404.47902742,0.0004,4]
[314190485,1708055448350,-500.0,0.0004,7]
[314190486,1708055448361,-500.0,0.0004,7]
[314190487,1708055448373,-5457.67,0.0004,7]
[314190488,1708055448384,-500.0,0.0004,7]
[314190489,1708055448394,-500.0,0.0004,7]
[314190490,1708055448403,-537.13,0.0004,7]
[314190491,1708055448414,-500.0,0.0004,7]
[314190492,1708055448425,-500.0,0.0004,7]
[314190493,1708055448435,-5053.0,0.0004,10]
[314190494,1708055448446,-500.0,0.0004,7]
[314190495,1708055448455,-500.0,0.0004,7]
[314190496,1708055448465,-543.39,0.0004,7]
[314190497,1708055448474,-186.6,0.00040022,2]
[314190498,1708055448484,-200.0,0.00040042,10]
[314190499,1708055448493,-572.0,0.00040082,7]
[314190500,1708055448504,-342.0,0.00040082,7]
[314190501,1708055448513,-400.0,0.00040082,7]
[314190502,1708055448523,-150.0,0.00040082,7]
[314190503,1708055448533,-1020.16216057,0.00040083,9]
[314190504,1708055448543,-155.04,0.000401,2]
[314190505,1708055448663,-200.0,0.00040101,20]
[314190506,1708055448673,-500.0,0.00040101,20]
[314190507,1708055448682,-166.66666666,0.00040108,30]
[314190508,1708055448692,-28370.42220132,0.00040118,2]
[314190509,1708055448701,-10379.73657337,0.00040145,14]
[314190510,1708055448711,-5000.0,0.00040153,15]
[314190511,1708055448720,-1000.0,0.00040153,15]
[314190512,1708055448729,-1500.0,0.00040153,2]
[314190513,1708055448738,-162.14051739,0.0004017,30]
[314190514,1708055448747,-165.62,0.00040185,2]
[314190515,1708055448761,-180.36270987,0.00040187,30]
[314190516,1708055448770,-151.021624,0.00040198,26]
[314190517,1708055448780,-200.0,0.00040202,15]
[314190518,1708055448790,-492.3,0.00040235,2]
[314190519,1708055448799,-800.0,0.00040241,15]
[314190520,1708055448809,-1849.31,0.00040273,7]
[314190521,1708055448818,-217.14824301,0.00040273,7]
[314190522,1708055448828,-500.0,0.00040273,7]
[314190523,1708055448837,-603.91,0.00040273,7]
[314190524,1708055448847,-500.0,0.00040273,7]
[314190525,1708055448856,-500.0,0.00040273,7]
[314190526,1708055448865,-500.0,0.00040273,7]
[314190527,1708055448874,-591.83,0.00040273,7]
[314190528,1708055448882,-500.0,0.00040273,7]
[314190529,1708055448902,-500.0,0.00040273,7]
[314190530,1708055448912,-523.26,0.00040273,7]
[314190531,1708055448922,-502.8,0.00040273,7]
[314190532,1708055448932,-539.09,0.00040273,7]
[314190533,1708055448941,-732.29,0.00040273,7]
[314190534,1708055448951,-500.0,0.00040273,7]
[314190535,1708055448961,-1505.67,0.00040273,7]
[314190536,1708055448970,-500.0,0.00040273,7]
[314190537,1708055448980,-667.52,0.00040273,7]
[314190538,1708055448989,-500.0,0.00040273,7]
[314190539,1708055448999,-500.0,0.00040273,7]
[314190540,1708055449009,-503.46,0.00040273,7]
[314190541,1708055449018,-488.44659545,0.00040273,7]
[314190542,1708055449027,-1147.58,0.00040273,7]
[314190543,1708055449037,-500.0,0.00040273,7]
[314190544,1708055449046,-500.0,0.00040273,7]
[314190545,1708055449055,-500.0,0.00040273,7]
[314190546,1708055449065,-1277.64,0.00040273,7]
[314190547,1708055449074,-500.0,0.00040273,7]
[314190548,1708055449084,-594.54,0.00040273,7]
[314190549,1708055449093,-5457.67,0.00040273,7]
[314190550,1708055449102,-500.0,0.00040273,7]
[314190551,1708055449111,-500.0,0.00040273,7]
[314190552,1708055449121,-537.13,0.00040273,7]
[314190553,1708055449130,-500.0,0.00040273,7]
[314190554,1708055449140,-500.0,0.00040273,7]
[314190555,1708055449150,-500.0,0.00040273,7]
[314190556,1708055449159,-500.0,0.00040273,7]
[314190557,1708055449169,-543.39,0.00040273,7]
[314190558,1708055449179,-259.283563,0.00040274,14]
[314190559,1708055449188,-432.77,0.00040274,2]
[314190560,1708055449198,-585.98,0.00040274,2]
[314190561,1708055449207,-418.75,0.00040274,2]
[314190562,1708055449217,-529.82,0.00040274,2]
[314190563,1708055449226,-839.57,0.00040274,2]
[314190564,1708055449236,-418.75,0.00040274,2]
[314190565,1708055449245,-418.75,0.00040274,2]
[314190566,1708055449255,-214.0,0.000403,14]
[314190567,1708055449264,-200.0,0.00040311,20]
[314190568,1708055449274,-1688.0,0.00040359,7]
[314190569,1708055449283,-1688.0,0.00040361,7]
[314190570,1708055449292,-663.91,0.00040374,7]
[314190571,1708055449302,-1688.0,0.00040385,7]
[314190572,1708055449311,-1688.0,0.00040394,7]
[314190573,1708055449320,-5149.5030991,0.000404,7]
[314190574,1708055449332,-155.01,0.000404,4]
[314190575,1708055449342,-155.01,0.000404,4]
[314190576,1708055449352,-569.45,0.000404,4]
[314190577,1708055449362,-569.45,0.000404,4]
[314190578,1708055449371,-569.45,0.000404,4]
[314190579,1708055449381,-569.45,0.000404,4]
[314190580,1708055449391,-569.45,0.000404,4]
[314190581,1708055449400,-569.45,0.000404,4]
[314190582,1708055449410,-569.45,0.000404,4]
[314190583,1708055449420,-569.45,0.000404,4]
[314190584,1708055449429,-569.45,0.000404,4]
[314190585,1708055449439,-569.45,0.000404,4]
[314190586,1708055449449,-569.45,0.000404,4]
[314190587,1708055449458,-569.45,0.000404,4]
[314190588,1708055449468,-569.45,0.000404,4]
[314190589,1708055449477,-569.45,0.000404,4]
[314190590,1708055449487,-569.45,0.000404,4]
[314190591,1708055449496,-569.45,0.000404,4]
[314190592,1708055449506,-569.45,0.000404,4]
[314190593,1708055449516,-569.45,0.000404,4]
[314190594,1708055449526,-569.45,0.000404,4]
[314190595,1708055449536,-569.45,0.000404,4]
[314190596,1708055449546,-5000.0,0.00040427,16]
[314190597,1708055449555,-1013.21389927,0.00040427,16]
[314190598,1708055449566,-572.0,0.00040427,7]
[314190599,1708055449576,-342.0,0.00040427,7]
[314190600,1708055449586,-400.0,0.00040427,7]
[314190601,1708055449595,-1062.03402057,0.00040476,5]
[314190602,1708055449605,-151.021624,0.00040498,26]
[314190603,1708055449617,-1000.0,0.000405,2]
[314190604,1708055449627,-166.66666666,0.00040516,30]
[314190605,1708055449636,-10379.73657337,0.00040521,14]
[314190606,1708055449646,-800.0,0.00040522,15]
[314190607,1708055449655,-200.0,0.00040522,20]
[314190608,1708055449665,-500.0,0.00040522,20]
[314190609,1708055449675,-187.93347713,0.00040544,2]
[314190610,1708055449684,-499.255,0.00040547,2]
[314190611,1708055449694,-1849.31,0.00040547,7]
[314190612,1708055449703,-500.0,0.00040547,7]
[314190613,1708055449713,-603.91,0.00040547,7]
[314190614,1708055449723,-485.59218882,0.00040547,7]
[314190615,1708055449733,-500.0,0.00040547,7]
[314190616,1708055449744,-500.0,0.00040547,7]
[314190617,1708055449756,-591.83,0.00040547,7]
[314190618,1708055449766,-500.0,0.00040547,7]
[314190619,1708055449775,-500.0,0.00040547,7]
[314190620,1708055449786,-523.26,0.00040547,7]
[314190621,1708055449796,-502.8,0.00040547,7]
[314190622,1708055449806,-539.09,0.00040547,7]
[314190623,1708055449815,-732.29,0.00040547,7]
[314190624,1708055449825,-500.0,0.00040547,7]
[314190625,1708055449837,-1505.67,0.00040547,7]
[314190626,1708055449846,-500.0,0.00040547,7]
[314190627,1708055449855,-667.52,0.00040547,7]
[314190628,1708055449865,-382.77845556,0.00040547,7]
[314190629,1708055449875,-500.0,0.00040547,7]
[314190630,1708055449887,-503.46,0.00040547,7]
[314190631,1708055449896,-1147.58,0.00040547,7]
[314190632,1708055449906,-500.0,0.00040547,7]
[314190633,1708055449915,-500.0,0.00040547,7]
[314190634,1708055449924,-500.0,0.00040547,7]
[314190635,1708055449933,-1277.64,0.00040547,7]
[314190636,1708055449943,-500.0,0.00040547,7]
[314190637,1708055449952,-5457.67,0.00040547,7]
[314190638,1708055449962,-236.58635085,0.00040547,7]
[314190639,1708055449971,-500.0,0.00040547,7]
[314190640,1708055449981,-537.13,0.00040547,7]
[314190641,1708055449991,-500.0,0.00040547,7]
[314190642,1708055450000,-500.0,0.00040547,7]
[314190643,1708055450010,-500.0,0.00040547,7]
[314190644,1708055450020,-500.0,0.00040547,7]
[314190645,1708055450030,-543.39,0.00040547,7]
[314190646,1708055450040,-500.0,0.00040547,10]
[314190647,1708055450050,-1164.85822244,0.00040577,2]
[314190648,1708055450059,-168.63731942,0.000406,30]
[314190649,1708055450069,-150.0,0.00040645,2]
[314190650,1708055450079,-1000.0,0.00040668,10]
[314190651,1708055450089,-1000.0,0.00040668,10]
[314190652,1708055450099,-1000.0,0.00040668,10]
[314190653,1708055450108,-1886.62731925,0.00040701,17]
[314190654,1708055450118,-1020.16216057,0.00040713,10]
[314190655,1708055450128,-1500.0,0.00040717,2]
[314190656,1708055450137,-213.77,0.00040733,2]
[314190657,1708055450147,-200.0,0.00040733,20]
[314190658,1708055450156,-572.0,0.00040772,7]
[314190659,1708055450166,-342.0,0.00040772,7]
[314190660,1708055450175,-400.0,0.00040772,7]
[314190661,1708055450185,-600.0,0.00040794,7]
[314190662,1708055450194,-600.0,0.00040794,7]
[314190663,1708055450203,-600.0,0.00040794,7]
[314190664,1708055450212,-600.0,0.00040794,7]
[314190665,1708055450222,-600.0,0.00040794,7]
[314190666,1708055450231,-600.0,0.00040794,7]
[314190667,1708055450240,-600.0,0.00040794,7]
[314190668,1708055450250,-600.0,0.00040794,7]
[314190669,1708055450260,-600.0,0.00040794,7]
[314190670,1708055450269,-151.021624,0.00040798,27]
[314190671,1708055450279,-3000.0,0.000408,44]
[314190672,1708055450289,-800.0,0.00040803,15]
[314190673,1708055450299,-3000.0,0.0004081,45]
[314190674,1708055450308,-5483.874982,0.0004082,45]
[314190675,1708055450318,-600.0,0.00040821,7]
[314190676,1708055450327,-1849.31,0.00040821,7]